bitfinex/quotes_ETHUSD_20250909
["timestamp","ask_amount","ask_price","bid_price","bid_amount"]
[1757424545719,0.1152,4339.2,4338.9,3.0]
[1757424545889,0.1152,4339.2,4338.8,3.906]
[1757424545890,0.1152,4339.2,4339.1,3.0]
[1757424546091,0.1152,4339.2,4339.1,3.3017]
[1757424546417,0.001,4339.7,4339.3,3.0]
[1757424546582,0.001,4339.7,4339.6,0.3017]
[1757424546583,0.1162,4339.7,4339.6,0.3017]
[1757424546780,0.1162,4339.7,4339.6,7.2077]
[1757424548780,0.1154,4339.7,4339.6,7.2077]
[1757424549027,0.0002,4339.7,4339.6,7.2077]
[1757424549215,0.0002,4339.7,4339.6,9.05118787]
[1757424549591,0.0002,4339.7,4339.6,10.03168787]
[1757424549818,0.0002,4339.7,4339.6,9.55548787]
[1757424550324,0.0002,4339.7,4339.6,39.55548787]
[1757424550994,4.77940674,4339.7,4339.6,5.674]
[1757424551183,5.61726833,4339.7,4339.6,8.674]
[1757424551597,0.0002,4339.7,4339.6,8.9757]
[1757424551929,3.98740674,4339.7,4339.6,8.674]
[1757424552127,3.98740674,4339.7,4339.6,4.768]
[1757424552279,3.98740674,4339.7,4339.6,8.674]
[1757424553124,1.6831,4339.7,4339.6,8.674]
[1757424553425,3.98740674,4339.7,4339.6,8.674]
[1757424553797,2.60850674,4339.7,4339.6,8.674]
[1757424554645,2.30450674,4339.7,4339.6,8.674]
[1757424554789,2.30450674,4339.7,4339.6,8.9757]
[1757424555363,0.0002,4339.7,4339.6,8.9757]
[1757424555830,2.30450674,4339.7,4339.6,8.9757]
[1757424556347,2.30450674,4339.7,4339.6,8.9747]
[1757424556750,2.30450674,4339.7,4339.6,8.673]
[1757424556958,4.62187767,4339.7,4339.6,8.673]
[1757424557524,4.62187767,4339.7,4339.6,4.768]
[1757424557724,4.62187767,4339.7,4339.6,8.673]
[1757424558029,4.97287767,4339.7,4339.6,8.673]
[1757424558240,5.41387767,4339.7,4339.6,8.673]
[1757424559240,6.64387767,4339.7,4339.6,8.673]
[1757424560545,6.44740674,4339.7,4339.6,8.673]
[1757424561222,5.70240674,4339.7,4339.6,8.673]
[1757424561448,6.00640674,4339.7,4339.6,8.673]
[1757424561654,5.06850674,4339.7,4339.6,8.673]
[1757424561856,6.29850674,4339.7,4339.6,8.673]
[1757424562631,6.80654446,4339.7,4339.6,8.673]
[1757424562849,8.18544446,4339.7,4339.6,8.673]
[1757424563438,9.41544446,4339.7,4339.6,8.673]
[1757424563940,5.73223772,4339.7,4339.6,8.673]
[1757424564140,5.42823772,4339.7,4339.6,8.673]
[1757424564686,7.73254446,4339.7,4339.6,8.673]
[1757424564886,7.73254446,4339.7,4339.6,8.9747]
[1757424564887,8.45450674,4339.7,4339.6,8.9747]
[1757424565086,6.1502,4339.7,4339.6,9.3638]
[1757424565236,6.1502,4339.7,4339.6,5.0697]
[1757424565443,8.45450674,4339.7,4339.6,8.9747]
[1757424565748,6.1502,4339.7,4339.6,8.9747]
[1757424566276,7.3802,4339.7,4339.6,39.3638]
[1757424566477,7.3802,4339.7,4339.6,39.9251]
[1757424567672,7.3802,4339.7,4339.6,39.479]
[1757424567887,7.3802,4339.7,4339.6,35.1849]
[1757424568092,7.3802,4339.7,4339.6,39.0899]
[1757424568457,7.3802,4339.7,4339.6,35.1849]
[1757424568652,7.3802,4339.7,4339.6,9.0899]
[1757424569190,8.6102,4339.7,4339.6,9.0899]
[1757424570158,8.6102,4339.7,4339.6,8.7882]
[1757424570367,9.8402,4339.7,4339.6,8.7882]
[1757424571508,12.44850674,4339.7,4339.6,8.672]
[1757424571816,13.83800674,4339.7,4339.6,8.672]
[1757424572002,15.06800674,4339.7,4339.6,8.672]
[1757424572350,14.61400674,4339.7,4339.6,8.672]
[1757424572660,15.06800674,4339.7,4339.6,8.672]
[1757424573162,15.06800674,4339.7,4339.6,4.768]
[1757424573392,15.06800674,4339.7,4339.6,8.672]
[1757424574158,16.29800674,4339.7,4339.6,8.672]
[1757424574383,15.84400674,4339.7,4339.6,8.672]
[1757424574594,16.29800674,4339.7,4339.6,8.674]
[1757424575098,16.29720674,4339.7,4339.6,8.674]
[1757424575599,17.52720674,4339.7,4339.6,8.674]
[1757424576391,17.07320674,4339.7,4339.6,8.674]
[1757424576596,15.83370674,4339.7,4339.6,8.674]
[1757424576891,17.51700674,4339.7,4339.6,8.674]
[1757424577099,15.2127,4339.7,4339.6,8.674]
[1757424577262,17.35750674,4339.7,4339.6,8.674]
[1757424577457,17.06370674,4339.7,4339.6,8.674]
[1757424577878,14.7594,4339.7,4339.6,8.674]
[1757424578075,14.7594,4339.7,4339.6,8.9628]
[1757424579021,14.7594,4339.7,4339.6,10.80628787]
[1757424579219,14.7594,4339.7,4339.6,8.9628]
[1757424579533,14.7594,4339.7,4339.6,38.9628]
[1757424579687,15.9894,4339.7,4339.6,40.80628787]
[1757424580403,15.9894,4339.7,4339.6,38.9628]
[1757424580607,15.9894,4339.7,4339.6,40.80628787]
[1757424580803,15.9894,4339.7,4339.6,38.9628]
[1757424581641,17.2194,4339.7,4339.6,38.9628]
[1757424581918,17.2194,4339.7,4339.6,40.80628787]
[1757424582212,17.2194,4339.7,4339.6,41.31058787]
[1757424582421,17.2194,4339.7,4339.6,40.92148787]
[1757424582803,17.2194,4339.7,4339.6,41.31058787]
[1757424583003,17.2194,4339.7,4339.6,39.078]
[1757424583191,18.4494,4339.7,4339.6,39.078]
[1757424583622,18.4494,4339.7,4339.6,40.92148787]
[1757424583999,18.4494,4339.7,4339.6,39.078]
[1757424584307,18.4494,4339.7,4339.6,40.92148787]
[1757424584824,19.6794,4339.7,4339.6,40.92148787]
[1757424585006,19.9732,4339.7,4339.6,34.8852]
[1757424585211,19.6794,4339.7,4339.6,38.9628]
[1757424585410,19.6794,4339.7,4339.6,39.078]
[1757424585737,21.3627,4339.7,4339.6,8.673]
[1757424586217,22.5927,4339.7,4339.6,8.673]
[1757424586812,22.1387,4339.7,4339.6,8.673]
[1757424587003,22.5927,4339.7,4339.6,8.673]
[1757424587591,23.8227,4339.7,4339.6,8.673]
[1757424588331,23.8227,4339.7,4339.6,8.9618]
[1757424588332,22.1394,4339.7,4339.6,8.9618]
[1757424589028,22.1394,4339.7,4339.6,10.80528787]
[1757424589231,23.3694,4339.7,4339.6,10.80528787]
[1757424589417,23.3694,4339.7,4339.6,8.673]
[1757424590937,24.5994,4339.7,4339.6,8.673]
[1757424591234,24.5994,4339.7,4339.6,4.77]
[1757424591431,24.5994,4339.7,4339.6,8.673]
[1757424591930,28.58700674,4339.7,4339.6,8.673]
[1757424592135,30.85491471,4339.7,4339.6,8.673]
[1757424593056,32.08491471,4339.7,4339.6,8.673]
[1757424594067,32.08591471,4339.7,4339.6,8.673]
[1757424595335,33.31591471,4339.7,4339.6,8.673]
[1757424595531,31.92641471,4339.7,4339.6,8.673]
[1757424595760,33.43111471,4339.7,4339.6,8.673]
[1757424596699,34.66111471,4339.7,4339.6,8.673]
[1757424597468,35.45311471,4339.7,4339.6,8.673]
[1757424598577,36.68311471,4339.7,4339.6,8.673]
[1757424598877,36.68311471,4339.7,4339.6,4.77]
[1757424599197,36.68311471,4339.7,4339.6,8.673]
[1757424599483,36.68311471,4339.7,4339.6,5.673]
[1757424600352,37.91311471,4339.7,4339.6,1.77]
[1757424600572,37.91311471,4339.7,4339.1,0.002]
[1757424600573,3.09657227,4339.2,4339.1,0.002]
[1757424600791,3.71587947,4339.2,4339.1,3.315]
[1757424601106,5.39917947,4339.2,4339.1,3.315]
[1757424601277,3.0938072,4339.2,4339.1,3.315]
[1757424601456,4.77907227,4339.2,4339.1,3.315]
[1757424601706,1.6833,4339.2,4339.1,6.315]
[1757424601910,31.9804,4339.7,4339.2,3.0]
[1757424602072,31.9804,4339.7,4339.3,8.671]
[1757424602277,32.0956,4339.7,4339.5,3.0]
[1757424602497,32.0956,4339.7,4339.6,6.903]
[1757424602662,32.404,4339.7,4339.6,6.903]
[1757424603007,32.0956,4339.7,4339.6,6.903]
[1757424603212,32.0956,4339.7,4339.6,7.2059]
[1757424603411,33.2104,4339.7,4339.6,39.96238787]
[1757424603610,33.2104,4339.7,4339.6,40.22964833]
[1757424603819,33.2104,4339.7,4339.6,42.53064833]
[1757424604234,27.82065954,4339.7,4339.6,42.53064833]
[1757424604512,1.27,4339.9,4339.8,1.84340292]
[1757424604811,0.04,4340.9,4340.2,1.84322985]
[1757424605031,0.04,4340.9,4340.4,4.84314809]
[1757424605232,0.04,4340.9,4340.4,35.25184809]
[1757424605531,0.04,4340.9,4340.4,39.26924809]
[1757424605821,0.04,4340.9,4340.5,0.26726046]
[1757424605990,0.04,4340.9,4340.7,3.0]
[1757424606336,0.04,4340.9,4340.7,37.0174]
[1757424606535,0.7614,4340.8,4340.7,3.903]
[1757424606740,2.30383927,4340.6,4340.5,3.0]
[1757424606882,2.30383927,4340.6,4340.3,11.768]
[1757424606883,2.30393512,4340.4,4340.3,1.768]
[1757424607086,4.82603512,4340.4,4340.3,5.671]
[1757424607904,4.82603512,4340.4,4340.3,1.768]
[1757424608525,0.792,4340.0,4339.6,1.767]
[1757424608725,3.40470674,4339.7,4339.6,1.767]
[1757424608882,4.09000674,4339.7,4339.6,3.495]
[1757424609083,0.1152,4339.7,4339.6,6.495]
[1757424609399,2.41941854,4339.9,4339.6,3.495]
[1757424609577,1.23,4339.7,4339.6,3.495]
[1757424609783,1.23,4339.7,4339.6,36.495]
[1757424609983,1.23,4339.7,4339.6,38.74718787]
[1757424610419,1.23,4339.7,4339.6,34.767]
[1757424610720,1.23,4339.7,4339.6,38.672]
[1757424611025,1.23,4339.7,4339.6,44.196]
[1757424611837,1.23,4339.7,4339.6,46.03948787]
[1757424611838,2.46,4339.7,4339.6,46.03948787]
[1757424612046,2.46,4339.7,4339.6,44.196]
[1757424612745,2.46,4339.7,4339.6,46.2025159]
[1757424613423,2.46,4339.7,4339.6,44.196]
[1757424613607,3.69,4339.7,4339.6,45.5786159]
[1757424613808,3.69,4339.7,4339.6,46.2025159]
[1757424614242,3.69,4339.7,4339.6,41.6736159]
[1757424614551,3.69,4339.7,4339.6,45.5776159]
[1757424615025,7.53270674,4339.7,4339.6,41.195]
[1757424615363,9.7706721,4339.7,4339.6,7.291]
[1757424615509,9.7706721,4339.7,4339.6,11.195]
[1757424615703,9.7706721,4339.7,4339.6,11.197]
[1757424616062,3.09657227,4339.2,4339.1,0.002]
[1757424616214,3.09657227,4339.2,4339.1,1.769]
[1757424616404,5.36677923,4339.2,4339.1,1.769]
[1757424616604,5.36677923,4339.2,4338.8,0.025]
[1757424616605,0.792,4339.1,4338.8,0.025]
[1757424616843,1.4217,4339.1,4338.8,0.025]
[1757424617018,0.3084,4338.9,4338.8,0.025]
[1757424617222,0.792,4339.3,4338.8,6.932]
[1757424617529,0.9937,4339.6,4338.9,33.0]
[1757424617846,6.578,4339.7,4339.1,3.0]
[1757424618018,6.578,4339.7,4339.3,3.0]
[1757424618203,2.30442025,4339.5,4339.4,3.0]
[1757424618408,2.30442025,4339.5,4338.8,0.025]
[1757424618409,2.30473161,4338.9,4338.8,0.025]
[1757424618603,2.30471698,4339.0,4338.8,6.934]
[1757424618824,4.03483161,4338.9,4338.8,6.934]
[1757424619103,4.82683161,4338.9,4338.8,6.935]
[1757424619346,4.82683161,4338.9,4338.8,0.025]
[1757424619557,5.53997887,4338.9,4338.8,3.935]
[1757424620052,4.82683161,4338.9,4338.8,0.025]
[1757424620465,4.82683161,4338.9,4338.8,3.935]
[1757424620645,4.82683161,4338.9,4338.8,0.025]
[1757424620848,4.82683161,4338.9,4338.8,3.935]
[1757424621834,3.21198473,4338.8,4338.7,3.909]
[1757424622138,5.5888283,4338.8,4338.7,3.909]
[1757424622456,5.8972283,4338.8,4338.7,3.909]
[1757424623457,0.792,4338.5,4337.8,0.025]
[1757424623656,3.09720977,4338.0,4337.9,3.908]
[1757424623859,0.9937,4338.7,4337.9,3.908]
[1757424624063,0.9937,4338.7,4338.0,1.768]
[1757424624265,1.4217,4339.2,4338.2,1.38306209]
[1757424624431,12.14431694,4339.7,4338.6,0.0033]
[1757424624761,2.30450266,4339.4,4338.8,3.0]
[1757424625061,0.428,4339.6,4338.9,1.768]
[1757424625262,13.37430731,4339.7,4339.3,0.0033]
[1757424625263,11.07,4339.7,4339.3,0.0033]
[1757424625426,11.07,4339.7,4339.6,1.3826159]
[1757424625627,11.07,4339.7,4339.6,36.6869159]
[1757424625828,11.07,4339.7,4339.6,37.3128159]
[1757424626338,11.07,4339.7,4339.6,41.2298159]
[1757424626556,11.07,4339.7,4339.6,41.2318159]
[1757424626759,12.3,4339.7,4339.6,41.2318159]
[1757424626968,12.3,4339.7,4339.6,35.3043]
[1757424627168,12.3,4339.7,4339.6,36.9223]
[1757424627379,13.0356,4339.7,4339.6,6.919]
[1757424627559,17.12560674,4339.7,4339.6,3.0]
[1757424627877,2.30463591,4339.1,4338.9,1.768]
[1757424628087,1.22,4339.6,4339.0,3.921]
[1757424628378,2.30467849,4339.0,4338.9,1.768]
[1757424628555,1.4217,4339.5,4338.9,5.689]
[1757424628752,1.4217,4339.5,4338.9,1.768]
[1757424628753,3.40507849,4339.0,4338.9,1.768]
[1757424629058,1.5284,4339.0,4338.9,5.689]
[1757424629248,3.83307849,4339.0,4338.9,8.689]
[1757424629676,13.5292,4339.7,4339.0,3.0]
[1757424629880,13.5292,4339.7,4339.2,3.0]
[1757424630180,13.5292,4339.7,4339.4,3.0]
[1757424630475,13.5292,4339.7,4338.9,4.768]
[1757424630476,14.7592,4339.7,4338.9,4.768]
[1757424630680,14.7592,4339.7,4339.0,30.0]
[1757424630839,14.7592,4339.7,4339.1,3.0]
[1757424631040,2.73237661,4339.6,4338.9,1.768]
[1757424631245,2.30456263,4339.3,4339.1,3.0]
[1757424631579,16.51484628,4339.7,4338.9,1.768]
[1757424631580,2.30467849,4339.0,4338.9,1.768]
[1757424631878,2.30467849,4339.0,4338.9,5.694]
[1757424632180,2.30467849,4339.0,4338.9,8.694]
[1757424632350,2.74267849,4339.0,4338.9,8.694]
[1757424632552,4.14627849,4339.0,4338.9,4.768]
[1757424632753,4.14627849,4339.0,4338.9,8.695]
[1757424633087,4.14627849,4339.0,4338.9,4.768]
[1757424633381,2.30446605,4339.4,4339.0,3.0]
[1757424633585,2.30462538,4339.1,4339.0,3.0]
[1757424633897,0.438,4339.1,4339.0,3.926]
[1757424634196,3.21187849,4339.0,4338.9,1.768]
[1757424634426,5.05347849,4339.0,4338.9,8.695]
[1757424634729,5.05347849,4339.0,4338.9,5.696]
[1757424634906,5.78928888,4339.0,4338.9,5.696]
[1757424635107,5.78928888,4339.0,4338.9,8.696]
[1757424635429,5.05347849,4339.0,4338.9,8.696]
[1757424636143,5.05347849,4339.0,4338.9,8.695]
[1757424636144,0.1152,4339.0,4338.9,8.695]
[1757424636434,18.4502,4339.7,4339.0,33.0]
[1757424636581,18.4502,4339.7,4339.2,3.0]
[1757424636943,18.4502,4339.7,4338.9,1.768]
[1757424636944,18.4502,4339.7,4339.4,3.0]
[1757424637127,18.4502,4339.7,4339.6,3.0]
[1757424637705,19.6802,4339.7,4339.6,3.928]
[1757424638260,19.6802,4339.7,4339.6,6.928]
[1757424639082,20.9102,4339.7,4339.6,6.928]
[1757424639274,20.9102,4339.7,4339.6,3.0]
[1757424639480,20.9102,4339.7,4339.6,6.928]
[1757424639788,23.65250674,4339.7,4339.6,6.928]
[1757424639993,23.21450674,4339.7,4339.6,6.928]
[1757424640219,20.9102,4339.7,4339.6,6.928]
[1757424640593,22.1402,4339.7,4339.6,6.9315]
[1757424641316,22.1402,4339.7,4339.6,8.3141159]
[1757424641478,22.1402,4339.7,4339.6,6.9315]
[1757424641878,22.1402,4339.7,4339.6,8.3141159]
[1757424642079,22.1402,4339.7,4339.6,6.9315]
[1757424642307,22.0902,4339.7,4339.6,6.9315]
[1757424643329,22.8363,4339.7,4339.6,3.0]
[1757424643645,28.58882666,4339.7,4339.6,6.924]
[1757424643850,29.38082666,4339.7,4339.6,3.0]
[1757424643999,2.30467849,4339.0,4338.9,1.768]
[1757424644204,3.09667849,4339.0,4338.9,1.768]
[1757424644501,3.09667849,4339.0,4338.3,5.525]
[1757424644502,3.09689097,4338.6,4338.3,5.525]
[1757424644700,3.40658007,4338.6,4337.8,0.025]
[1757424645011,3.09726291,4337.9,4337.8,1e-08]
[1757424645198,3.09758181,4337.3,4337.1,1.808]
[1757424645405,3.40568181,4337.3,4337.2,3.931]
[1757424645605,4.93918181,4337.3,4337.2,3.931]
[1757424645904,5.66365046,4337.3,4337.2,3.931]
[1757424647702,4.93918181,4337.3,4337.2,3.931]
[1757424648117,2.6336,4337.3,4337.2,3.931]
[1757424648444,0.438,4338.3,4337.3,3.0]
[1757424648761,0.1152,4337.5,4337.4,6.928]
[1757424648901,0.1152,4337.5,4337.4,6.9411]
[1757424649106,0.1152,4337.8,4337.5,3.0]
[1757424649304,0.1152,4337.8,4337.7,3.0]
[1757424649619,0.1152,4337.8,4337.2,0.002]
[1757424649620,4.26211605,4337.8,4337.2,0.002]
[1757424649768,0.1152,4337.8,4337.3,3.929]
[1757424649953,0.438,4339.0,4337.7,0.0131]
[1757424650155,0.1152,4338.3,4337.9,3.0]
[1757424650342,0.438,4339.0,4338.2,0.0131]
[1757424650544,0.1402,4338.8,4338.3,3.931]
[1757424650737,2.44499011,4338.8,4338.3,3.931]
[1757424651264,2.44500251,4338.8,4338.5,3.0]
[1757424651469,0.1402,4338.8,4338.2,3.0]
[1757424651634,0.1402,4338.8,4338.4,3.0]
[1757424651834,2.44502721,4338.8,4338.4,3.0]
[1757424652166,0.438,4338.7,4338.5,6.935]
[1757424652374,0.438,4338.7,4338.6,3.0]
[1757424652532,0.438,4338.7,4338.5,3.935]
[1757424652733,2.30499068,4338.5,4338.0,1.768]
[1757424652961,0.1152,4338.4,4338.1,3.934]
[1757424653162,0.1152,4338.4,4338.2,3.0]
[1757424653385,0.438,4338.3,4338.0,1.768]
[1757424653591,0.1144,4338.1,4338.0,1.768]
[1757424653789,5.05315663,4338.1,4338.0,1.768]
[1757424653952,5.788978,4338.1,4338.0,5.703]
[1757424654286,5.788978,4338.1,4338.0,1.768]
[1757424654473,5.788978,4338.1,4338.0,5.703]
[1757424654675,3.09758181,4337.3,4337.2,1.77]
[1757424654873,4.93918181,4337.3,4337.2,1.77]
[1757424655687,5.5857915,4337.3,4337.2,1.77]
[1757424658506,5.5857915,4337.3,4337.2,5.704]
[1757424661371,5.5857915,4337.3,4337.2,5.703]
[1757424661594,0.792,4337.0,4336.8,1e-08]
[1757424661893,0.792,4337.0,4336.3,0.002]
[1757424661894,3.09806032,4336.4,4336.3,0.002]
[1757424662106,4.02626175,4336.4,4336.3,0.002]
[1757424662314,5.55336175,4336.4,4336.3,0.002]
[1757424662893,5.55336175,4336.4,4336.3,3.936]
[1757424663215,5.55336175,4336.4,4336.3,0.002]
[1757424664128,3.07249831,4337.3,4336.3,0.002]
[1757424664346,1.0578,4337.4,4336.5,3.0]
[1757424664488,0.025,4337.8,4336.6,31.769]
[1757424664818,0.025,4337.8,4336.6,1.769]
[1757424665105,0.025,4337.8,4336.7,3.0]
[1757424665307,0.025,4337.8,4336.9,4.38346431]
[1757424665504,0.025,4337.8,4337.1,3.0]
[1757424665706,0.025,4337.8,4337.3,3.0]
[1757424666003,0.025,4337.8,4336.7,2.302]
[1757424666207,2.3057275,4337.1,4336.9,3.0]
[1757424666390,0.792,4337.7,4336.9,3.0]
[1757424666707,2.30574129,4337.0,4336.9,3.0]
[1757424666870,2.33032358,4337.8,4336.9,34.3997715]
[1757424667204,0.025,4337.8,4337.0,30.0]
[1757424667372,2.33032292,4337.8,4337.0,30.0]
[1757424667567,2.30542279,4337.6,4337.0,30.0]
[1757424667807,2.30559965,4337.3,4337.2,3.0]
[1757424667967,2.30552965,4337.4,4337.2,3.0]
[1757424668293,2.30557896,4337.4,4337.2,3.0]
[1757424668729,2.30558181,4337.3,4337.2,3.0]
[1757424668929,2.33032035,4337.8,4336.6,1.769]
[1757424669247,2.3054755,4337.5,4336.8,3.0]
[1757424669409,0.792,4337.6,4336.8,3.0]
[1757424669937,0.792,4337.7,4336.8,3.0]
[1757424670133,2.30568813,4337.1,4337.0,3.0]
[1757424670333,2.3059008,4336.7,4336.6,1.769]
[1757424670536,3.0979008,4336.7,4336.6,8.71]
[1757424670733,3.5672008,4336.7,4336.6,5.71]
[1757424670933,3.943,4338.3,4336.7,3.0]
[1757424671121,2.30552865,4337.4,4336.7,3.0]
[1757424671322,0.025,4337.8,4336.9,3.0]
[1757424671522,0.025,4337.8,4337.1,3.0]
[1757424671840,2.42083497,4337.2,4337.1,3.0]
[1757424672251,2.42083497,4337.2,4337.1,3.944]
[1757424672437,0.1152,4337.2,4337.1,3.944]
[1757424672642,0.1152,4337.2,4337.1,3.9603]
[1757424672845,2.33034629,4337.8,4337.2,1.38335625]
[1757424672846,0.025,4337.8,4337.2,1.38335625]
[1757424673173,0.025,4337.8,4337.7,0.0163]
[1757424673313,0.025,4337.8,4337.7,9.2792]
[1757424673517,0.025,4337.8,4337.7,40.66242152]
[1757424673717,0.025,4337.8,4337.7,40.67262152]
[1757424674358,0.025,4337.8,4337.7,34.769]
[1757424674565,0.025,4337.8,4337.7,8.715]
[1757424674863,3.12331605,4337.8,4337.7,8.716]
[1757424675163,0.026,4337.8,4337.7,8.7323]
[1757424675449,0.026,4337.8,4337.7,39.2802]
[1757424675636,0.026,4337.8,4337.7,40.66342152]
[1757424675837,0.026,4337.8,4337.7,40.11552152]
[1757424676050,0.026,4337.8,4337.7,40.67362152]
[1757424676366,0.026,4337.8,4337.7,42.97562152]
[1757424677075,0.001,4338.2,4338.1,1.38309398]
[1757424677266,0.001,4338.2,4338.1,10.86009398]
[1757424677419,0.001,4338.2,4338.1,44.43449398]
[1757424677814,0.001,4338.2,4338.1,40.48549398]
[1757424678010,0.001,4338.2,4338.1,44.43449398]
[1757424679643,0.0002,4338.2,4338.1,44.43449398]
[1757424682156,0.0002,4338.2,4338.1,40.47529398]
[1757424682456,0.0002,4338.2,4338.1,43.87439398]
[1757424682624,0.0002,4338.2,4338.1,39.92739398]
[1757424682825,0.0002,4338.2,4338.1,40.99059398]
[1757424683050,0.0002,4338.2,4338.1,43.99059398]
[1757424683352,0.0002,4338.2,4338.1,44.43349398]
[1757424683586,0.0002,4338.2,4338.1,43.98959398]
[1757424683878,0.0002,4338.2,4338.1,43.97429398]
[1757424684052,0.0002,4338.2,4338.1,43.99059398]
[1757424684691,0.0002,4338.2,4338.1,44.54869398]
[1757424684844,0.0002,4338.2,4338.1,44.53849398]
[1757424685044,0.0002,4338.2,4338.1,43.99059398]
[1757424686485,0.0002,4338.2,4338.1,43.87539398]
[1757424687253,0.0002,4338.2,4338.1,44.43349398]
[1757424687860,0.0002,4338.2,4338.1,44.42329398]
[1757424688177,0.0002,4338.2,4338.1,39.92739398]
[1757424688374,0.0002,4338.2,4338.1,44.43249398]
[1757424689198,0.0002,4338.2,4338.1,44.42229398]
[1757424689547,0.0002,4338.2,4338.1,44.43249398]
[1757424689889,34.3902,4339.7,4338.2,5.44233571]
[1757424690099,34.3902,4339.7,4338.8,1.38287083]
[1757424690384,34.3902,4339.7,4339.1,1.38277522]
[1757424690584,34.3902,4339.7,4339.1,38.34707522]
[1757424691558,35.6202,4339.7,4339.1,38.34707522]
[1757424692067,35.6202,4339.7,4339.1,34.38277522]
[1757424692249,0.4612,4339.6,4339.1,38.32977522]
[1757424692455,36.5849,4339.7,4339.1,38.32977522]
[1757424692456,4.1512,4339.2,4339.1,38.32977522]
[1757424692656,3.69,4339.2,4339.1,38.32977522]
[1757424692963,3.69,4339.2,4339.1,34.38277522]
[1757424693301,5.4251,4339.2,4339.1,30.0]
[1757424693597,3.69,4339.2,4339.1,5.32777522]
[1757424693796,3.69,4339.2,4339.1,8.32777522]
[1757424694094,4.1512,4339.2,4339.1,35.32777522]
[1757424694300,3.69,4339.2,4339.1,36.945]
[1757424694597,5.4261,4339.2,4339.1,33.0]
[1757424695068,5.4261,4339.2,4339.1,36.946]
[1757424695457,3.691,4339.2,4339.1,38.32877522]
[1757424695666,3.691,4339.2,4339.1,36.946]
[1757424695870,5.4261,4339.2,4339.1,36.946]
[1757424696090,5.4261,4339.2,4339.1,38.32877522]
[1757424696291,3.691,4339.2,4339.1,38.32877522]
[1757424696594,3.691,4339.2,4339.1,38.44397522]
[1757424696761,4.4614,4339.2,4339.1,37.0612]
[1757424696962,5.4261,4339.2,4339.1,36.945]
[1757424697587,5.4261,4339.2,4339.1,33.0]
[1757424697772,8.27328227,4339.2,4339.1,6.946]
[1757424697972,8.27328227,4339.2,4339.1,3.0]
[1757424698197,8.27328227,4339.2,4339.1,6.946]
[1757424698899,8.27328227,4339.2,4338.8,1.768]
[1757424698900,0.792,4339.1,4338.8,1.768]
[1757424699109,0.3092,4338.9,4338.8,1.768]
[1757424699400,0.3092,4338.9,4338.8,38.713]
[1757424699401,1.7351,4338.9,4338.8,38.713]
[1757424699595,4.03983161,4338.9,4338.8,38.713]
[1757424699758,5.05490058,4338.9,4338.8,4.768]
[1757424699961,5.05490058,4338.9,4338.8,8.714]
[1757424700160,5.84690058,4338.9,4338.8,8.714]
[1757424701805,3.54216897,4338.9,4338.8,8.714]
[1757424701955,5.84690058,4338.9,4338.8,8.714]
[1757424702162,3.691,4339.2,4338.9,3.0]
[1757424702383,1.5411,4339.1,4339.0,46.945]
[1757424702555,0.1152,4339.1,4339.0,36.949]
[1757424702977,0.5764,4339.1,4339.0,36.949]
[1757424703517,1.8503,4339.1,4339.0,36.949]
[1757424703877,1.8503,4339.1,4339.0,6.949]
[1757424704889,1.8503,4339.1,4339.0,3.0]
[1757424705059,1.8503,4339.1,4339.0,6.947]
[1757424705809,0.8848,4339.1,4339.0,6.947]
[1757424706216,3.691,4339.2,4339.1,33.0]
[1757424706362,3.691,4339.2,4339.1,34.39907522]
[1757424706567,3.691,4339.2,4339.1,35.03537522]
[1757424707002,44.2302,4339.7,4339.2,4.38274336]
[1757424707307,44.2302,4339.7,4339.6,4.5141159]
[1757424707513,44.2302,4339.7,4339.6,42.5311159]
[1757424708680,44.2302,4339.7,4339.6,42.64320832]
[1757424708882,45.4602,4339.7,4339.6,42.64320832]
[1757424709405,45.4602,4339.7,4339.6,42.64020832]
[1757424710303,45.4602,4339.7,4339.6,41.24129242]
[1757424710500,46.6902,4339.7,4339.6,41.24129242]
[1757424710697,46.6902,4339.7,4339.6,41.1292]
[1757424710932,46.6902,4339.7,4339.6,42.5118159]
[1757424711446,46.6902,4339.7,4339.6,41.1292]
[1757424711734,47.4606,4339.7,4339.6,41.1292]
[1757424712117,47.4606,4339.7,4339.6,37.1842]
[1757424712316,48.4253,4339.7,4339.6,8.711]
[1757424712514,49.6553,4339.7,4339.6,8.711]
[1757424712715,49.6553,4339.7,4339.6,5.712]
[1757424712716,53.53636639,4339.7,4339.6,5.712]
[1757424713238,53.53636639,4339.7,4339.6,8.712]
[1757424713828,51.23205965,4339.7,4339.6,8.712]
[1757424714041,53.53636639,4339.7,4339.6,8.712]
[1757424714242,52.46205965,4339.7,4339.6,8.712]
[1757424714430,52.46205965,4339.7,4339.6,40.0946159]
[1757424714431,49.1502,4339.7,4339.6,40.0946159]
[1757424714633,49.1502,4339.7,4339.6,38.8272]
[1757424715106,49.1502,4339.7,4339.6,40.2098159]
[1757424715303,49.1502,4339.7,4339.6,38.8272]
[1757424716002,50.3802,4339.7,4339.6,40.2098159]
[1757424716206,50.3802,4339.7,4339.6,40.2261159]